{"text_format":"3","workbook":"xlsx","n_sheets":3,"sheets":["Uppgifter","Månadsvy","Veckovy"],"not_rendered":{"images":4,"defined_names":16},"read":"whole","date_system":"1900"}

{"sheet":"Uppgifter","index":0,"n_rows":15,"n_cols":3,"rows_kept":15}
[null,"MÅNADSVY","VECKOVY"]
[null," UPPGIFTER"]
[null,"BESKRIVNING","FÖRFALLODATUM"]
[null,"Uppgift 1",{"$f":"TODAY()","v":"2022-12-13"}]
[null,"Uppgift 2",{"$f":"TODAY()+15","v":"2022-12-28"}]
[null,"Uppgift 3",{"$f":"TODAY()+30","v":"2023-01-12"}]
[null,"Uppgift 4",{"$f":"TODAY()+45","v":"2023-01-27"}]
[null,"Uppgift 5",{"$f":"TODAY()+60","v":"2023-02-11"}]
[null,"Uppgift 6",{"$f":"TODAY()+75","v":"2023-02-26"}]
[null,"Uppgift 7",{"$f":"TODAY()+90","v":"2023-03-13"}]
[null,"Uppgift 8",{"$f":"TODAY()+105","v":"2023-03-28"}]
[null,"Uppgift 9",{"$f":"TODAY()+115","v":"2023-04-07"}]
[null,"Uppgift 10",{"$f":"TODAY()+130","v":"2023-04-22"}]
[null,"Uppgift 11",{"$f":"TODAY()+145","v":"2023-05-07"}]
[null,"Uppgift 12",{"$f":"TODAY()+160","v":"2023-05-22"}]

{"sheet":"Månadsvy","index":1,"n_rows":17,"n_cols":8,"rows_kept":17}
[null,"UPPGIFTER","VECKOVY"]
[null,"Välj månad:","Ange år:"]
[null,{"$f":"TEXT(TODAY(),\"MMMM\")","v":"december"},{"$f":"YEAR(TODAY())","v":2022}]
[null," MÅNADSVY"]
[null,"MÅNDAG","TISDAG","ONSDAG","TORSDAG","FREDAG","LÖRDAG","SÖNDAG"]
[null,{"$f":"IF(WEEKDAY(DATEVALUE(\"1\"&MåMånad&MåÅr),2)=COLUMN(A$2),1,IF(LEN(A6)>0,A6+1,\"\"))","v":""},"","",1,2,3,4]
[null,{"$f":"IF(LEN(B6)=0,\"\",IF(COUNTIF(Uppgifter[FÖRFALLODATUM],DATE(MåÅr,MåMånadNum,B6))>0,\"Uppgiften ska vara inlämnad!\",\"\"))","v":""},{"$f":"IF(LEN(C6)=0,\"\",IF(COUNTIF(Uppgifter[FÖRFALLODATUM],DATE(MåÅr,MåMånadNum,C6))>0,\"Uppgiften ska vara inlämnad!\",\"\"))","v":""},{"$f":"IF(LEN(D6)=0,\"\",IF(COUNTIF(Uppgifter[FÖRFALLODATUM],DATE(MåÅr,MåMånadNum,D6))>0,\"Uppgiften ska vara inlämnad!\",\"\"))","v":""},{"$f":"IF(LEN(E6)=0,\"\",IF(COUNTIF(Uppgifter[FÖRFALLODATUM],DATE(MåÅr,MåMånadNum,E6))>0,\"Uppgiften ska vara inlämnad!\",\"\"))","v":""},{"$f":"IF(LEN(F6)=0,\"\",IF(COUNTIF(Uppgifter[FÖRFALLODATUM],DATE(MåÅr,MåMånadNum,F6))>0,\"Uppgiften ska vara inlämnad!\",\"\"))","v":""},{"$f":"IF(LEN(G6)=0,\"\",IF(COUNTIF(Uppgifter[FÖRFALLODATUM],DATE(MåÅr,MåMånadNum,G6))>0,\"Uppgiften ska vara inlämnad!\",\"\"))","v":""},{"$f":"IF(LEN(H6)=0,\"\",IF(COUNTIF(Uppgifter[FÖRFALLODATUM],DATE(MåÅr,MåMånadNum,H6))>0,\"Uppgiften ska vara inlämnad!\",\"\"))","v":""}]
[null,{"$f":"IF(LEN(H6)>0,IF(H6=DAY(DATE(MåÅr,MåMånadNum+1,0)),\"\",H6+1),\"\")","v":5},{"$f":"IF(LEN(B8)>0,IF(B8=DAY(DATE(MåÅr,MåMånadNum+1,0)),\"\",B8+1),\"\")","v":6},7,8,9,10,11]
[null,{"$f":"IF(LEN(B8)=0,\"\",IF(COUNTIF(Uppgifter[FÖRFALLODATUM],DATE(MåÅr,MåMånadNum,B8))>0,\"Uppgiften ska vara inlämnad!\",\"\"))","v":""},{"$f":"IF(LEN(C8)=0,\"\",IF(COUNTIF(Uppgifter[FÖRFALLODATUM],DATE(MåÅr,MåMånadNum,C8))>0,\"Uppgiften ska vara inlämnad!\",\"\"))","v":""},{"$f":"IF(LEN(D8)=0,\"\",IF(COUNTIF(Uppgifter[FÖRFALLODATUM],DATE(MåÅr,MåMånadNum,D8))>0,\"Uppgiften ska vara inlämnad!\",\"\"))","v":""},{"$f":"IF(LEN(E8)=0,\"\",IF(COUNTIF(Uppgifter[FÖRFALLODATUM],DATE(MåÅr,MåMånadNum,E8))>0,\"Uppgiften ska vara inlämnad!\",\"\"))","v":""},{"$f":"IF(LEN(F8)=0,\"\",IF(COUNTIF(Uppgifter[FÖRFALLODATUM],DATE(MåÅr,MåMånadNum,F8))>0,\"Uppgiften ska vara inlämnad!\",\"\"))","v":""},{"$f":"IF(LEN(G8)=0,\"\",IF(COUNTIF(Uppgifter[FÖRFALLODATUM],DATE(MåÅr,MåMånadNum,G8))>0,\"Uppgiften ska vara inlämnad!\",\"\"))","v":""},{"$f":"IF(LEN(H8)=0,\"\",IF(COUNTIF(Uppgifter[FÖRFALLODATUM],DATE(MåÅr,MåMånadNum,H8))>0,\"Uppgiften ska vara inlämnad!\",\"\"))","v":""}]
[null,{"$f":"IF(LEN(H8)>0,IF(H8=DAY(DATE(MåÅr,MåMånadNum+1,0)),\"\",H8+1),\"\")","v":12},{"$f":"IF(LEN(B10)>0,IF(B10=DAY(DATE(MåÅr,MåMånadNum+1,0)),\"\",B10+1),\"\")","v":13},14,15,16,17,18]
[null,{"$f":"IF(LEN(B10)=0,\"\",IF(COUNTIF(Uppgifter[FÖRFALLODATUM],DATE(MåÅr,MåMånadNum,B10))>0,\"Uppgiften ska vara inlämnad!\",\"\"))","v":""},{"$f":"IF(LEN(C10)=0,\"\",IF(COUNTIF(Uppgifter[FÖRFALLODATUM],DATE(MåÅr,MåMånadNum,C10))>0,\"Uppgiften ska vara inlämnad!\",\"\"))","v":"Uppgiften ska vara inlämnad!"},{"$f":"IF(LEN(D10)=0,\"\",IF(COUNTIF(Uppgifter[FÖRFALLODATUM],DATE(MåÅr,MåMånadNum,D10))>0,\"Uppgiften ska vara inlämnad!\",\"\"))","v":""},{"$f":"IF(LEN(E10)=0,\"\",IF(COUNTIF(Uppgifter[FÖRFALLODATUM],DATE(MåÅr,MåMånadNum,E10))>0,\"Uppgiften ska vara inlämnad!\",\"\"))","v":""},{"$f":"IF(LEN(F10)=0,\"\",IF(COUNTIF(Uppgifter[FÖRFALLODATUM],DATE(MåÅr,MåMånadNum,F10))>0,\"Uppgiften ska vara inlämnad!\",\"\"))","v":""},{"$f":"IF(LEN(G10)=0,\"\",IF(COUNTIF(Uppgifter[FÖRFALLODATUM],DATE(MåÅr,MåMånadNum,G10))>0,\"Uppgiften ska vara inlämnad!\",\"\"))","v":""},{"$f":"IF(LEN(H10)=0,\"\",IF(COUNTIF(Uppgifter[FÖRFALLODATUM],DATE(MåÅr,MåMånadNum,H10))>0,\"Uppgiften ska vara inlämnad!\",\"\"))","v":""}]
[null,{"$f":"IF(LEN(H10)>0,IF(H10=DAY(DATE(MåÅr,MåMånadNum+1,0)),\"\",H10+1),\"\")","v":19},{"$f":"IF(LEN(B12)>0,IF(B12=DAY(DATE(MåÅr,MåMånadNum+1,0)),\"\",B12+1),\"\")","v":20},21,22,23,24,25]
[null,{"$f":"IF(LEN(B12)=0,\"\",IF(COUNTIF(Uppgifter[FÖRFALLODATUM],DATE(MåÅr,MåMånadNum,B12))>0,\"Uppgiften ska vara inlämnad!\",\"\"))","v":""},{"$f":"IF(LEN(C12)=0,\"\",IF(COUNTIF(Uppgifter[FÖRFALLODATUM],DATE(MåÅr,MåMånadNum,C12))>0,\"Uppgiften ska vara inlämnad!\",\"\"))","v":""},{"$f":"IF(LEN(D12)=0,\"\",IF(COUNTIF(Uppgifter[FÖRFALLODATUM],DATE(MåÅr,MåMånadNum,D12))>0,\"Uppgiften ska vara inlämnad!\",\"\"))","v":""},{"$f":"IF(LEN(E12)=0,\"\",IF(COUNTIF(Uppgifter[FÖRFALLODATUM],DATE(MåÅr,MåMånadNum,E12))>0,\"Uppgiften ska vara inlämnad!\",\"\"))","v":""},{"$f":"IF(LEN(F12)=0,\"\",IF(COUNTIF(Uppgifter[FÖRFALLODATUM],DATE(MåÅr,MåMånadNum,F12))>0,\"Uppgiften ska vara inlämnad!\",\"\"))","v":""},{"$f":"IF(LEN(G12)=0,\"\",IF(COUNTIF(Uppgifter[FÖRFALLODATUM],DATE(MåÅr,MåMånadNum,G12))>0,\"Uppgiften ska vara inlämnad!\",\"\"))","v":""},{"$f":"IF(LEN(H12)=0,\"\",IF(COUNTIF(Uppgifter[FÖRFALLODATUM],DATE(MåÅr,MåMånadNum,H12))>0,\"Uppgiften ska vara inlämnad!\",\"\"))","v":""}]
[null,{"$f":"IF(LEN(H12)>0,IF(H12=DAY(DATE(MåÅr,MåMånadNum+1,0)),\"\",H12+1),\"\")","v":26},{"$f":"IF(LEN(B14)>0,IF(B14=DAY(DATE(MåÅr,MåMånadNum+1,0)),\"\",B14+1),\"\")","v":27},28,29,30,31,""]
[null,{"$f":"IF(LEN(B14)=0,\"\",IF(COUNTIF(Uppgifter[FÖRFALLODATUM],DATE(MåÅr,MåMånadNum,B14))>0,\"Uppgiften ska vara inlämnad!\",\"\"))","v":""},{"$f":"IF(LEN(C14)=0,\"\",IF(COUNTIF(Uppgifter[FÖRFALLODATUM],DATE(MåÅr,MåMånadNum,C14))>0,\"Uppgiften ska vara inlämnad!\",\"\"))","v":""},{"$f":"IF(LEN(D14)=0,\"\",IF(COUNTIF(Uppgifter[FÖRFALLODATUM],DATE(MåÅr,MåMånadNum,D14))>0,\"Uppgiften ska vara inlämnad!\",\"\"))","v":"Uppgiften ska vara inlämnad!"},{"$f":"IF(LEN(E14)=0,\"\",IF(COUNTIF(Uppgifter[FÖRFALLODATUM],DATE(MåÅr,MåMånadNum,E14))>0,\"Uppgiften ska vara inlämnad!\",\"\"))","v":""},{"$f":"IF(LEN(F14)=0,\"\",IF(COUNTIF(Uppgifter[FÖRFALLODATUM],DATE(MåÅr,MåMånadNum,F14))>0,\"Uppgiften ska vara inlämnad!\",\"\"))","v":""},{"$f":"IF(LEN(G14)=0,\"\",IF(COUNTIF(Uppgifter[FÖRFALLODATUM],DATE(MåÅr,MåMånadNum,G14))>0,\"Uppgiften ska vara inlämnad!\",\"\"))","v":""},{"$f":"IF(LEN(H14)=0,\"\",IF(COUNTIF(Uppgifter[FÖRFALLODATUM],DATE(MåÅr,MåMånadNum,H14))>0,\"Uppgiften ska vara inlämnad!\",\"\"))","v":""}]
[null,{"$f":"IF(LEN(H14)>0,IF(H14=DAY(DATE(MåÅr,MåMånadNum+1,0)),\"\",H14+1),\"\")","v":""},{"$f":"IF(LEN(B16)>0,IF(B16=DAY(DATE(MåÅr,MåMånadNum+1,0)),\"\",B16+1),\"\")","v":""},"","","","",""]
[null,{"$f":"IF(LEN(B16)=0,\"\",IF(COUNTIF(Uppgifter[FÖRFALLODATUM],DATE(MåÅr,MåMånadNum,B16))>0,\"Uppgiften ska vara inlämnad!\",\"\"))","v":""},{"$f":"IF(LEN(C16)=0,\"\",IF(COUNTIF(Uppgifter[FÖRFALLODATUM],DATE(MåÅr,MåMånadNum,C16))>0,\"Uppgiften ska vara inlämnad!\",\"\"))","v":""},{"$f":"IF(LEN(D16)=0,\"\",IF(COUNTIF(Uppgifter[FÖRFALLODATUM],DATE(MåÅr,MåMånadNum,D16))>0,\"Uppgiften ska vara inlämnad!\",\"\"))","v":""},{"$f":"IF(LEN(E16)=0,\"\",IF(COUNTIF(Uppgifter[FÖRFALLODATUM],DATE(MåÅr,MåMånadNum,E16))>0,\"Uppgiften ska vara inlämnad!\",\"\"))","v":""},{"$f":"IF(LEN(F16)=0,\"\",IF(COUNTIF(Uppgifter[FÖRFALLODATUM],DATE(MåÅr,MåMånadNum,F16))>0,\"Uppgiften ska vara inlämnad!\",\"\"))","v":""},{"$f":"IF(LEN(G16)=0,\"\",IF(COUNTIF(Uppgifter[FÖRFALLODATUM],DATE(MåÅr,MåMånadNum,G16))>0,\"Uppgiften ska vara inlämnad!\",\"\"))","v":""},{"$f":"IF(LEN(H16)=0,\"\",IF(COUNTIF(Uppgifter[FÖRFALLODATUM],DATE(MåÅr,MåMånadNum,H16))>0,\"Uppgiften ska vara inlämnad!\",\"\"))","v":""}]

{"sheet":"Veckovy","index":2,"n_rows":17,"n_cols":8,"rows_kept":17}
[null,"UPPGIFTER","MÅNADSVY"]
[null,"Välj månad:","Ange år:","Välj veckonummer:"]
[null,"september",{"$f":"YEAR(TODAY())","v":2022},"Vecka 1"]
[null," VECKOVY"]
[null,{"$f":"IF(WEEKDAY(DATEVALUE(\"1\"&VkMånad&VkÅr),2)=COLUMN(A$2),1,IF(LEN(A5)>0,A5+1,\"\"))","v":""},"","",1,2,3,4]
[null,{"$f":"IF(LEN(H5)>0,IF(H5=SistaDagIMånad_Vecka,\"\",H5+1),\"\")","v":5},{"$f":"IF(LEN(B6)>0,IF(B6=SistaDagIMånad_Vecka,\"\",B6+1),\"\")","v":6},7,8,9,10,11]
[null,{"$f":"IF(LEN(H6)>0,IF(H6=SistaDagIMånad_Vecka,\"\",H6+1),\"\")","v":12},13,14,15,16,17,18]
[null,{"$f":"IF(LEN(H7)>0,IF(H7=SistaDagIMånad_Vecka,\"\",H7+1),\"\")","v":19},20,21,22,23,24,25]
[null,{"$f":"IF(LEN(H8)>0,IF(H8=SistaDagIMånad_Vecka,\"\",H8+1),\"\")","v":26},27,28,29,30,"",""]
[null,{"$f":"IF(LEN(H9)>0,IF(H9=SistaDagIMånad_Vecka,\"\",H9+1),\"\")","v":""},"","","","","",""]
[null,"MÅNDAG","TISDAG","ONSDAG","TORSDAG","FREDAG","LÖRDAG","SÖNDAG"]
[null,{"$f":"IF(B14=\"\",IF(AND(ISNUMBER(A12),A12<SistaDagIMånad_Vecka),A12+1,\"\"),IF(B14<=7,\"\",INDEX(VkMånadVy,VkVecka,COLUMN(A$2))-7))","v":""},"","","","","",""]
[null,{"$f":"IF(LEN(B12)=0,\"\",IF(COUNTIF(Uppgifter[FÖRFALLODATUM],DATE(VkÅr,VkMånadNum,B12))>0,\"Uppgiften ska vara inlämnad!\",\"\"))","v":""},{"$f":"IF(LEN(C12)=0,\"\",IF(COUNTIF(Uppgifter[FÖRFALLODATUM],DATE(VkÅr,VkMånadNum,C12))>0,\"Uppgiften ska vara inlämnad!\",\"\"))","v":""},{"$f":"IF(LEN(D12)=0,\"\",IF(COUNTIF(Uppgifter[FÖRFALLODATUM],DATE(VkÅr,VkMånadNum,D12))>0,\"Uppgiften ska vara inlämnad!\",\"\"))","v":""},{"$f":"IF(LEN(E12)=0,\"\",IF(COUNTIF(Uppgifter[FÖRFALLODATUM],DATE(VkÅr,VkMånadNum,E12))>0,\"Uppgiften ska vara inlämnad!\",\"\"))","v":""},{"$f":"IF(LEN(F12)=0,\"\",IF(COUNTIF(Uppgifter[FÖRFALLODATUM],DATE(VkÅr,VkMånadNum,F12))>0,\"Uppgiften ska vara inlämnad!\",\"\"))","v":""},{"$f":"IF(LEN(G12)=0,\"\",IF(COUNTIF(Uppgifter[FÖRFALLODATUM],DATE(VkÅr,VkMånadNum,G12))>0,\"Uppgiften ska vara inlämnad!\",\"\"))","v":""},{"$f":"IF(LEN(H12)=0,\"\",IF(COUNTIF(Uppgifter[FÖRFALLODATUM],DATE(VkÅr,VkMånadNum,H12))>0,\"Uppgiften ska vara inlämnad!\",\"\"))","v":""}]
[null,{"$f":"INDEX(VkMånadVy,VkVecka,COLUMN(A$2))","v":""},{"$f":"INDEX(VkMånadVy,VkVecka,COLUMN(B$2))","v":""},{"$f":"INDEX(VkMånadVy,VkVecka,COLUMN(C$2))","v":""},{"$f":"INDEX(VkMånadVy,VkVecka,COLUMN(D$2))","v":1},{"$f":"INDEX(VkMånadVy,VkVecka,COLUMN(E$2))","v":2},{"$f":"INDEX(VkMånadVy,VkVecka,COLUMN(F$2))","v":3},{"$f":"INDEX(VkMånadVy,VkVecka,COLUMN(G$2))","v":4}]
[null,{"$f":"IF(LEN(B14)=0,\"\",IF(COUNTIF(Uppgifter[FÖRFALLODATUM],DATE(VkÅr,VkMånadNum,B14))>0,\"Uppgiften ska vara inlämnad!\",\"\"))","v":""},{"$f":"IF(LEN(C14)=0,\"\",IF(COUNTIF(Uppgifter[FÖRFALLODATUM],DATE(VkÅr,VkMånadNum,C14))>0,\"Uppgiften ska vara inlämnad!\",\"\"))","v":""},{"$f":"IF(LEN(D14)=0,\"\",IF(COUNTIF(Uppgifter[FÖRFALLODATUM],DATE(VkÅr,VkMånadNum,D14))>0,\"Uppgiften ska vara inlämnad!\",\"\"))","v":""},{"$f":"IF(LEN(E14)=0,\"\",IF(COUNTIF(Uppgifter[FÖRFALLODATUM],DATE(VkÅr,VkMånadNum,E14))>0,\"Uppgiften ska vara inlämnad!\",\"\"))","v":""},{"$f":"IF(LEN(F14)=0,\"\",IF(COUNTIF(Uppgifter[FÖRFALLODATUM],DATE(VkÅr,VkMånadNum,F14))>0,\"Uppgiften ska vara inlämnad!\",\"\"))","v":""},{"$f":"IF(LEN(G14)=0,\"\",IF(COUNTIF(Uppgifter[FÖRFALLODATUM],DATE(VkÅr,VkMånadNum,G14))>0,\"Uppgiften ska vara inlämnad!\",\"\"))","v":""},{"$f":"IF(LEN(H14)=0,\"\",IF(COUNTIF(Uppgifter[FÖRFALLODATUM],DATE(VkÅr,VkMånadNum,H14))>0,\"Uppgiften ska vara inlämnad!\",\"\"))","v":""}]
[null,{"$f":"IFERROR(IF(B14=\"\",IF(AND(ISNUMBER(A16),A16<SistaDagIMånad_Vecka),A16+1,$H$14+COLUMN(A$2)),IF(B14+7>SistaDagIMånad_Vecka,\"\",INDEX(VkMånadVy,VkVecka,COLUMN(A$2))+7)),\"\")","v":5},{"$f":"IFERROR(IF(C14=\"\",IF(AND(ISNUMBER(B16),B16<SistaDagIMånad_Vecka),B16+1,$H$14+COLUMN(B$2)),IF(C14+7>SistaDagIMånad_Vecka,\"\",INDEX(VkMånadVy,VkVecka,COLUMN(B$2))+7)),\"\")","v":6},{"$f":"IFERROR(IF(D14=\"\",IF(AND(ISNUMBER(C16),C16<SistaDagIMånad_Vecka),C16+1,$H$14+COLUMN(C$2)),IF(D14+7>SistaDagIMånad_Vecka,\"\",INDEX(VkMånadVy,VkVecka,COLUMN(C$2))+7)),\"\")","v":7},{"$f":"IFERROR(IF(E14=\"\",IF(AND(ISNUMBER(D16),D16<SistaDagIMånad_Vecka),D16+1,$H$14+COLUMN(D$2)),IF(E14+7>SistaDagIMånad_Vecka,\"\",INDEX(VkMånadVy,VkVecka,COLUMN(D$2))+7)),\"\")","v":8},{"$f":"IFERROR(IF(F14=\"\",IF(AND(ISNUMBER(E16),E16<SistaDagIMånad_Vecka),E16+1,$H$14+COLUMN(E$2)),IF(F14+7>SistaDagIMånad_Vecka,\"\",INDEX(VkMånadVy,VkVecka,COLUMN(E$2))+7)),\"\")","v":9},{"$f":"IFERROR(IF(G14=\"\",IF(AND(ISNUMBER(F16),F16<SistaDagIMånad_Vecka),F16+1,$H$14+COLUMN(F$2)),IF(G14+7>SistaDagIMånad_Vecka,\"\",INDEX(VkMånadVy,VkVecka,COLUMN(F$2))+7)),\"\")","v":10},{"$f":"IFERROR(IF(H14=\"\",IF(AND(ISNUMBER(G16),G16<SistaDagIMånad_Vecka),G16+1,$H$14+COLUMN(G$2)),IF(H14+7>SistaDagIMånad_Vecka,\"\",INDEX(VkMånadVy,VkVecka,COLUMN(G$2))+7)),\"\")","v":11}]
[null,{"$f":"IF(LEN(B16)=0,\"\",IF(COUNTIF(Uppgifter[FÖRFALLODATUM],DATE(VkÅr,VkMånadNum,B16))>0,\"Uppgiften ska vara inlämnad!\",\"\"))","v":""},{"$f":"IF(LEN(C16)=0,\"\",IF(COUNTIF(Uppgifter[FÖRFALLODATUM],DATE(VkÅr,VkMånadNum,C16))>0,\"Uppgiften ska vara inlämnad!\",\"\"))","v":""},{"$f":"IF(LEN(D16)=0,\"\",IF(COUNTIF(Uppgifter[FÖRFALLODATUM],DATE(VkÅr,VkMånadNum,D16))>0,\"Uppgiften ska vara inlämnad!\",\"\"))","v":""},{"$f":"IF(LEN(E16)=0,\"\",IF(COUNTIF(Uppgifter[FÖRFALLODATUM],DATE(VkÅr,VkMånadNum,E16))>0,\"Uppgiften ska vara inlämnad!\",\"\"))","v":""},{"$f":"IF(LEN(F16)=0,\"\",IF(COUNTIF(Uppgifter[FÖRFALLODATUM],DATE(VkÅr,VkMånadNum,F16))>0,\"Uppgiften ska vara inlämnad!\",\"\"))","v":""},{"$f":"IF(LEN(G16)=0,\"\",IF(COUNTIF(Uppgifter[FÖRFALLODATUM],DATE(VkÅr,VkMånadNum,G16))>0,\"Uppgiften ska vara inlämnad!\",\"\"))","v":""},{"$f":"IF(LEN(H16)=0,\"\",IF(COUNTIF(Uppgifter[FÖRFALLODATUM],DATE(VkÅr,VkMånadNum,H16))>0,\"Uppgiften ska vara inlämnad!\",\"\"))","v":""}]